lending/lending_fUSD_20240504
["ID","MTS","AMOUNT","RATE_DAILY","PERIOD"]
[325414461,1714855849492,-500.0,0.00041095,30]
[325414462,1714855849501,-511.21,0.00041095,30]
[325414463,1714855849510,-500.0,0.00041095,30]
[325414464,1714855849520,-500.0,0.00041095,30]
[325414465,1714855849528,-1383.59,0.00041095,30]
[325414466,1714855849537,-500.0,0.00041095,30]
[325414467,1714855849546,-500.0,0.00041095,30]
[325414468,1714855849555,-638.77,0.00041095,30]
[325414469,1714855849564,-1198.08,0.00041095,30]
[325414470,1714855849574,-500.0,0.00041095,30]
[325414471,1714855849583,-500.0,0.00041095,30]
[325414472,1714855849592,-1145.69,0.00041095,30]
[325414473,1714855849601,-500.0,0.00041095,30]
[325414474,1714855849610,-500.0,0.00041095,30]
[325414475,1714855849619,-500.0,0.00041095,30]
[325414476,1714855849638,-501.1957794,0.00041095,30]
[325414477,1714855849647,-500.0,0.00041095,30]
[325414478,1714855849655,-807.43,0.00041095,30]
[325414479,1714855849665,-500.0,0.00041095,30]
[325414480,1714855849674,-500.0,0.00041095,30]
[325414481,1714855849683,-2244.52,0.00041095,30]
[325414482,1714855849692,-1499.25,0.00041095,30]
[325414483,1714855849701,-502.92420587,0.00041095,30]
[325414484,1714855849710,-1142.16,0.00041095,30]
[325414485,1714855849719,-502.77728431,0.00041095,30]
[325414486,1714855849728,-500.0,0.00041095,30]
[325414487,1714855849738,-500.0,0.00041095,30]
[325414488,1714855849747,-689.49,0.00041095,30]
[325414489,1714855849755,-500.0,0.00041095,30]
[325414490,1714855849765,-1152.74,0.00041095,30]
[325414491,1714855849774,-500.0,0.00041095,30]
[325414492,1714855849785,-500.0,0.00041095,30]
[325414493,1714855849794,-1028.98,0.00041095,30]
[325414494,1714855849803,-500.0,0.00041095,30]
[325414495,1714855849812,-500.0,0.00041095,30]
[325414496,1714855849822,-2033.8,0.00041095,30]
[325414497,1714855849832,-500.0,0.00041095,30]
[325414498,1714855849841,-500.0,0.00041095,30]
[325414499,1714855849851,-1097.76,0.00041095,30]
[325414500,1714855849860,-500.0,0.00041095,30]
[325414501,1714855849869,-500.0,0.00041095,30]
[325414502,1714855849878,-1515.87,0.00041095,30]
[325414503,1714855849887,-254.10935064,0.00041095,30]
[325414504,1714855849896,-527.53,0.00041095,30]
[325414505,1714855849905,-500.0,0.00041095,30]
[325414506,1714855849914,-500.0,0.00041095,30]
[325414507,1714855849924,-500.0,0.00041095,30]
[325414508,1714855849934,-500.0,0.00041095,30]
[325414509,1714855849943,-500.0,0.00041095,30]
[325414510,1714855849952,-1408.76,0.00041095,30]
[325414511,1714855849962,-1000.0,0.00041095,30]
[325414512,1714855849972,-617.01,0.00041095,30]
[325414513,1714855849982,-1969.99,0.00041095,30]
[325414514,1714855849992,-500.0,0.00041095,30]
[325414515,1714855850002,-500.0,0.00041095,30]
[325414516,1714855850011,-1134.82,0.00041095,30]
[325414517,1714855850020,-1414.47,0.00041095,30]
[325414518,1714855850030,-1834.89,0.00041095,30]
[325414519,1714855850039,-500.0,0.00041095,30]
[325414520,1714855850048,-500.0,0.00041095,30]
[325414521,1714855850057,-500.0,0.00041095,30]
[325414522,1714855850066,-500.0,0.00041095,30]
[325414523,1714855850076,-1292.36,0.00041095,30]
[325414524,1714855850085,-2855.25,0.00041095,2]
[325414525,1714855850094,-500.0,0.00041095,30]
[325414526,1714855850104,-500.0,0.00041095,30]
[325414527,1714855850114,-500.0,0.00041095,30]
[325414528,1714855850123,-500.0,0.00041095,30]
[325414529,1714855850134,-763.87,0.00041095,30]
[325414530,1714855850143,-1307.95,0.00041095,30]
[325414531,1714855850153,-1420.98,0.00041095,30]
[325414532,1714855850162,-500.0,0.00041095,30]
[325414533,1714855850171,-500.0,0.00041095,30]
[325414534,1714855850181,-568.16,0.00041095,30]
[325414535,1714855850190,-500.0,0.00041095,30]
[325414536,1714855850200,-500.0,0.00041095,30]
[325414537,1714855850209,-500.0,0.00041095,30]
[325414538,1714855850218,-1468.59,0.00041095,30]
[325414539,1714855850227,-500.0,0.00041095,30]
[325414540,1714855850238,-500.0,0.00041095,30]
[325414541,1714855850247,-500.0,0.00041095,30]
[325414542,1714855850257,-592.64799597,0.00041095,30]
[325414543,1714855850266,-500.0,0.00041095,30]
[325414544,1714855850276,-1269.83,0.00041095,30]
[325414545,1714855850285,-500.0,0.00041095,30]
[325414546,1714855850295,-500.0,0.00041095,30]
[325414547,1714855850304,-1075.81,0.00041095,30]
[325414548,1714855850314,-500.0,0.00041095,30]
[325414549,1714855850323,-500.0,0.00041095,30]
[325414550,1714855850333,-500.0,0.00041095,30]
[325414551,1714855850342,-500.0,0.00041095,30]
[325414552,1714855850352,-1991.76,0.00041095,30]
[325414553,1714855850361,-597.52,0.00041095,30]
[325414554,1714855850371,-748.38,0.00041095,30]
[325414555,1714855850381,-500.0,0.00041095,30]
[325414556,1714855850391,-1720.38,0.00041095,30]
[325414557,1714855850401,-1512.75,0.00041095,30]
[325414558,1714855850411,-1261.88,0.00041095,30]
[325414559,1714855850420,-500.0,0.00041095,30]
[325414560,1714855850430,-503.08430868,0.00041095,30]
[325414561,1714855850440,-500.0,0.00041095,30]
[325414562,1714855850450,-1266.13,0.00041095,30]
[325414563,1714855850459,-500.0,0.00041095,30]
[325414564,1714855850469,-526.09,0.00041095,30]
[325414565,1714855850479,-500.0,0.00041095,30]
[325414566,1714855850489,-843.05,0.00041095,30]
[325414567,1714855850499,-1165.4,0.00041095,30]
[325414568,1714855850509,-683.77,0.00041095,30]
[325414569,1714855850520,-451.97860507,0.00041095,30]
[325414570,1714855850529,-500.0,0.00041095,30]
[325414571,1714855850539,-1212.47,0.00041095,30]
[325414572,1714855850548,-500.0,0.00041095,30]
[325414573,1714855850558,-500.0,0.00041095,30]
[325414574,1714855850568,-500.0,0.00041095,30]
[325414575,1714855850577,-500.0,0.00041095,30]
[325414576,1714855850587,-1639.91,0.00041095,30]
[325414577,1714855850596,-555.66,0.00041095,30]
[325414578,1714855850606,-3024.9,0.00041095,30]
[325414579,1714855850616,-2515.29,0.00041095,30]
[325414580,1714855850626,-500.0,0.00041095,30]
[325414581,1714855850636,-835.83,0.00041095,30]
[325414582,1714855850645,-530.27,0.00041095,30]
[325414583,1714855850654,-723.64,0.00041095,30]
[325414584,1714855850665,-479.15157014,0.00041095,30]
[325414585,1714855850674,-751.0,0.00041095,30]
[325414586,1714855850684,-500.0,0.00041095,30]
[325414587,1714855850694,-500.0,0.00041095,30]
[325414588,1714855850704,-500.0,0.00041095,30]
[325414589,1714855850713,-1252.06,0.00041095,30]
[325414590,1714855850723,-1613.89,0.00041095,30]
[325414591,1714855850732,-500.0,0.00041095,30]
[325414592,1714855850741,-500.0,0.00041095,30]
[325414593,1714855850751,-500.0,0.00041095,30]
[325414594,1714855850761,-1361.38,0.00041095,30]
[325414595,1714855850771,-504.08046271,0.00041095,30]
[325414596,1714855850783,-500.0,0.00041095,30]
[325414597,1714855850793,-1177.14,0.00041095,30]
[325414598,1714855850803,-998.41,0.00041095,30]
[325414599,1714855850812,-500.0,0.00041095,30]
[325414600,1714855850823,-500.0,0.00041095,30]
[325414601,1714855850833,-1373.37,0.00041095,30]
[325414602,1714855850842,-500.0,0.00041095,30]
[325414603,1714855850852,-500.0,0.00041095,30]
[325414604,1714855850863,-370.40487988,0.00041095,30]
[325414605,1714855850873,-911.53,0.00041095,30]
[325414606,1714855850882,-1332.83,0.00041095,30]
[325414607,1714855850892,-500.0,0.00041095,30]
[325414608,1714855850901,-1155.56,0.00041095,30]
[325414609,1714855850911,-1359.65,0.00041095,30]
[325414610,1714855850920,-500.0,0.00041095,30]
[325414611,1714855850931,-696.8,0.00041095,30]
[325414612,1714855850940,-500.0,0.00041095,30]
[325414613,1714855850950,-3316.07,0.00041095,30]
[325414614,1714855850961,-500.0,0.00041095,30]
[325414615,1714855850971,-500.0,0.00041095,30]
[325414616,1714855850980,-1729.95,0.00041095,30]
[325414617,1714855850991,-585.88,0.00041095,30]
[325414618,1714855851000,-500.0,0.00041095,30]
[325414619,1714855851010,-945.37,0.00041095,30]
[325414620,1714855851021,-983.34,0.00041095,30]
[325414621,1714855851031,-752.64,0.00041095,30]
[325414622,1714855851040,-601.08,0.00041095,30]
[325414623,1714855851050,-500.0,0.00041095,30]
[325414624,1714855851059,-449.11448732,0.00041095,30]
[325414625,1714855851069,-500.0,0.00041095,30]
[325414626,1714855851079,-500.0,0.00041095,30]
[325414627,1714855851088,-500.0,0.00041095,30]
[325414628,1714855851098,-500.0,0.00041095,30]
[325414629,1714855851107,-777.56,0.00041095,30]
[325414630,1714855851117,-957.27,0.00041095,30]
[325414631,1714855851127,-500.0,0.00041095,30]
[325414632,1714855851136,-502.57199475,0.00041095,30]
[325414633,1714855851146,-2602.23,0.00041095,30]
[325414634,1714855851156,-1033.67,0.00041095,30]
[325414635,1714855851167,-1346.62,0.00041095,30]
[325414636,1714855851177,-1027.05,0.00041095,30]
[325414637,1714855851188,-1259.37,0.00041095,30]
[325414638,1714855851197,-500.0,0.00041095,30]
[325414639,1714855851207,-494.74658321,0.00041095,30]
[325414640,1714855851216,-1245.07,0.00041095,30]
[325414641,1714855851226,-500.0,0.00041095,30]
[325414642,1714855851235,-1508.16,0.00041095,30]
[325414643,1714855851245,-1604.71,0.00041095,30]
[325414644,1714855851255,-500.0,0.00041095,30]
[325414645,1714855851265,-4897.6,0.00041095,30]
[325414646,1714855851275,-500.0,0.00041095,30]
[325414647,1714855851284,-752.05,0.00041095,30]
[325414648,1714855851294,-500.0,0.00041095,30]
[325414649,1714855851304,-500.0,0.00041095,30]
[325414650,1714855851314,-500.0,0.00041095,30]
[325414651,1714855851324,-1337.97,0.00041095,30]
[325414652,1714855851334,-1453.61,0.00041095,30]
[325414653,1714855851343,-500.0,0.00041095,30]
[325414654,1714855851353,-500.0,0.00041095,30]
[325414655,1714855851363,-1786.68,0.00041095,30]
[325414656,1714855851372,-850.43,0.00041095,30]
[325414657,1714855851382,-1073.63,0.00041095,30]
[325414658,1714855851392,-721.03,0.00041095,30]
[325414659,1714855851401,-692.66,0.00041095,30]
[325414660,1714855851411,-500.0,0.00041095,30]
[325414661,1714855851421,-500.0,0.00041095,30]
[325414662,1714855851431,-31034.14,0.00041095,30]
[325414663,1714855851441,-606.98,0.00041095,30]
[325414664,1714855851451,-802.47,0.00041095,30]
[325414665,1714855851461,-500.0,0.00041095,30]
[325414666,1714855851471,-500.0,0.00041095,30]
[325414667,1714855851481,-1577.12,0.00041095,30]
[325414668,1714855851490,-651.41,0.00041095,30]
[325414669,1714855851500,-500.0,0.00041095,30]
[325414670,1714855851510,-500.0,0.00041095,30]
[325414671,1714855851520,-1710.18,0.00041095,30]
[325414672,1714855851530,-500.0,0.00041095,30]
[325414673,1714855851539,-2776.76,0.00041095,30]
[325414674,1714855851549,-500.0,0.00041095,30]
[325414675,1714855851559,-1534.34,0.00041095,30]
[325414676,1714855851569,-500.0,0.00041095,30]
[325414677,1714855851579,-912.12,0.00041095,30]
[325414678,1714855851589,-500.0,0.00041095,30]
[325414679,1714855851598,-500.0,0.00041095,30]
[325414680,1714855851608,-500.0,0.00041095,30]
[325414681,1714855851618,-500.0,0.00041095,30]
[325414682,1714855851628,-500.0,0.00041095,30]
[325414683,1714855851638,-500.0,0.00041095,30]
[325414684,1714855851647,-500.0,0.00041095,30]
[325414685,1714855851657,-500.0,0.00041095,30]
[325414686,1714855851667,-1274.37,0.00041095,30]
[325414687,1714855851678,-732.72,0.00041095,30]
[325414688,1714855851688,-500.0,0.00041095,30]
[325414689,1714855851697,-650.65,0.00041095,30]
[325414690,1714855851707,-500.0,0.00041095,30]
[325414691,1714855851717,-2488.51,0.00041095,30]
[325414692,1714855851728,-1032.49,0.00041095,30]
[325414693,1714855851737,-500.0,0.00041095,30]
[325414694,1714855851747,-1380.49,0.00041095,30]
[325414695,1714855851756,-1039.8,0.00041095,30]
[325414696,1714855851767,-513.89036949,0.00041095,30]
[325414697,1714855851777,-557.21,0.00041095,30]
[325414698,1714855851788,-1128.8,0.00041095,30]
[325414699,1714855851798,-1095.93,0.00041095,30]
[325414700,1714855851807,-2874.42,0.00041095,30]
[325414701,1714855851818,-500.0,0.00041095,30]
[325414702,1714855851828,-500.0,0.00041095,30]
[325414703,1714855851837,-500.0,0.00041095,30]
[325414704,1714855851847,-565.71176825,0.00041095,30]
[325414705,1714855851856,-500.0,0.00041095,30]
[325414706,1714855851866,-1496.48,0.00041095,30]
[325414707,1714855851875,-500.0,0.00041095,30]
[325414708,1714855851884,-1110.24,0.00041095,30]
[325414709,1714855851894,-500.0,0.00041095,30]
[325414710,1714855851903,-500.0,0.00041095,30]
[325414711,1714855851913,-3755.17,0.00041095,30]
[325414712,1714855851923,-500.0,0.00041095,30]
[325414713,1714855851932,-740.75,0.00041095,30]
[325414714,1714855851942,-524.42468657,0.00041095,30]
[325414715,1714855851951,-500.0,0.00041095,30]
[325414716,1714855851960,-500.0,0.00041095,30]
[325414717,1714855851970,-500.0,0.00041095,30]
[325414718,1714855851980,-500.0,0.00041095,30]
[325414719,1714855851990,-500.0,0.00041095,30]
[325414720,1714855851999,-502.21637995,0.00041095,30]
[325414721,1714855852009,-500.0,0.00041095,30]
[325414722,1714855852019,-500.0,0.00041095,30]
[325414723,1714855852029,-1722.67,0.00041095,30]
[325414724,1714855852039,-500.0,0.00041095,30]
[325414725,1714855852048,-500.0,0.00041095,30]
[325414726,1714855852058,-934.4,0.00041095,30]
[325414727,1714855852067,-500.0,0.00041095,30]
[325414728,1714855852077,-1126.66,0.00041095,30]
[325414729,1714855852087,-691.7,0.00041095,30]
[325414730,1714855852097,-500.0,0.00041095,30]
[325414731,1714855852107,-2956.24,0.00041095,30]
[325414732,1714855852116,-501.32346513,0.00041095,30]
[325414733,1714855852126,-864.99,0.00041095,30]
[325414734,1714855852135,-500.0,0.00041095,30]
[325414735,1714855852145,-648.07252423,0.00041095,30]
[325414736,1714855852155,-500.0,0.00041095,30]
[325414737,1714855852165,-965.96,0.00041095,30]
[325414738,1714855852174,-500.0,0.00041095,30]
[325414739,1714855852184,-1196.45,0.00041095,30]
[325414740,1714855852486,-500.0,0.00041095,30]
[325414741,1714855852508,-519.3553494,0.00041095,30]
[325414742,1714855852517,-1080.53,0.00041095,30]
[325414743,1714855852527,-831.46,0.00041095,30]
[325414744,1714855852537,-500.0,0.00041095,30]
[325414745,1714855852547,-500.32,0.00041095,30]
[325414746,1714855852557,-500.0,0.00041095,30]
[325414747,1714855852568,-500.0,0.00041095,30]
[325414748,1714855852577,-500.0,0.00041095,30]
[325414749,1714855852586,-500.0,0.00041095,30]
[325414750,1714855852596,-500.0,0.00041095,30]
[325414751,1714855852605,-684.67,0.00041095,30]
[325414752,1714855852615,-1609.4,0.00041095,30]
[325414753,1714855852626,-2819.74,0.00041095,30]
[325414754,1714855852635,-500.0,0.00041095,30]
[325414755,1714855852645,-1000.0,0.00041095,30]
[325414756,1714855852655,-1167.55,0.00041095,30]
[325414757,1714855852665,-500.0,0.00041095,30]
[325414758,1714855852674,-500.0,0.00041095,30]
[325414759,1714855852685,-500.0,0.00041095,30]
[325414760,1714855852696,-930.74,0.00041095,30]
[325414761,1714855852706,-500.0,0.00041095,30]
[325414762,1714855852716,-500.0,0.00041095,30]
[325414763,1714855852725,-782.31,0.00041095,30]
[325414764,1714855852735,-500.0,0.00041095,30]
[325414765,1714855852744,-773.57,0.00041095,30]
[325414766,1714855852753,-633.92,0.00041095,30]
[325414767,1714855852763,-500.0,0.00041095,30]
[325414768,1714855852772,-701.25,0.00041095,30]
[325414769,1714855852783,-811.09,0.00041095,30]
[325414770,1714855852794,-4587.86,0.00041095,30]
[325414771,1714855852803,-1469.12,0.00041095,30]
[325414772,1714855852813,-500.0,0.00041095,30]
[325414773,1714855852824,-500.0,0.00041095,30]
[325414774,1714855852834,-1027.67,0.00041095,30]
[325414775,1714855852843,-500.0,0.00041095,30]
[325414776,1714855852854,-791.11,0.00041095,30]
[325414777,1714855852868,-500.0,0.00041095,30]
[325414778,1714855852879,-500.0,0.00041095,30]
[325414779,1714855852888,-815.25,0.00041095,30]
[325414780,1714855852898,-914.36,0.00041095,30]
[325414781,1714855852907,-623.0,0.00041095,30]
[325414782,1714855852917,-500.0,0.00041095,30]
[325414783,1714855852926,-7487.49,0.00041095,30]
[325414784,1714855852936,-500.0,0.00041095,30]
[325414785,1714855852946,-500.0,0.00041095,30]
[325414786,1714855852956,-504.45042747,0.00041095,30]
[325414787,1714855852965,-563.66,0.00041095,30]
[325414788,1714855852976,-926.22,0.00041095,30]
[325414789,1714855852987,-558.41,0.00041095,30]
[325414790,1714855852996,-500.0,0.00041095,30]
[325414791,1714855853006,-500.0,0.00041095,30]
[325414792,1714855853017,-671.2,0.00041095,30]
[325414793,1714855853028,-500.0,0.00041095,30]
[325414794,1714855853038,-1170.03,0.00041095,30]
[325414795,1714855853048,-1221.02,0.00041095,30]
[325414796,1714855853058,-500.0,0.00041095,30]
[325414797,1714855853067,-500.0,0.00041095,30]
[325414798,1714855853077,-500.0,0.00041095,30]
[325414799,1714855853087,-649.14144154,0.00041095,30]
[325414800,1714855853097,-500.0,0.00041095,30]
[325414801,1714855853109,-11556.97,0.00041095,30]
[325414802,1714855853119,-500.0,0.00041095,30]
[325414803,1714855853128,-10686.37,0.00041095,30]
[325414804,1714855853138,-500.0,0.00041095,30]
[325414805,1714855853148,-500.0,0.00041095,30]
[325414806,1714855853158,-587.59,0.00041095,30]
[325414807,1714855853168,-500.0,0.00041095,30]
[325414808,1714855853177,-641.72,0.00041095,30]
[325414809,1714855853187,-1405.75,0.00041095,30]
[325414810,1714855853197,-632.92,0.00041095,30]
[325414811,1714855853206,-500.0,0.00041095,30]
[325414812,1714855853216,-500.0,0.00041095,30]
[325414813,1714855853225,-9415.94,0.00041095,30]
[325414814,1714855853234,-1376.63,0.00041095,30]
[325414815,1714855853243,-500.0,0.00041095,30]
[325414816,1714855853253,-500.0,0.00041095,30]
[325414817,1714855853262,-1097.87,0.00041095,30]
[325414818,1714855853271,-500.0,0.00041095,30]
[325414819,1714855853280,-1625.13,0.00041095,30]
[325414820,1714855853290,-500.0,0.00041095,30]
[325414821,1714855853299,-500.0,0.00041095,30]
[325414822,1714855853308,-500.0,0.00041095,30]
[325414823,1714855853318,-500.0,0.00041095,30]
[325414824,1714855853328,-500.0,0.00041095,30]
[325414825,1714855853337,-906.96,0.00041095,30]
[325414826,1714855853347,-500.0,0.00041095,30]
[325414827,1714855853357,-500.0,0.00041095,31]
[325414828,1714855853366,-500.0,0.00041095,32]
[325414829,1714855853375,-500.0,0.00041095,33]
[325414830,1714855853385,-500.0,0.00041095,34]
[325414831,1714855853395,-655.2,0.00041095,30]
[325414832,1714855853404,-500.0,0.00041095,35]
[325414833,1714855853413,-500.0,0.00041095,30]
[325414834,1714855853423,-3550.21,0.00041095,30]
[325414835,1714855853432,-563.01,0.00041095,30]
[325414836,1714855853442,-160.43,0.00041095,36]
[325414837,1714855853451,-2000.0,0.00041095,120]
[325414838,1714855853460,-1151.85,0.00041095,30]
[325414839,1714855853470,-1706.38,0.00041095,30]
[325414840,1714855853480,-603.04,0.00041095,30]
[325414841,1714855853489,-500.0,0.00041095,30]
[325414842,1714855853499,-20852.84,0.00041095,30]
[325414843,1714855853508,-500.0,0.00041095,30]
[325414844,1714855853518,-500.0,0.00041095,30]
[325414845,1714855853528,-773.8,0.00041095,30]
[325414846,1714855853537,-500.0,0.00041095,30]
[325414847,1714855853547,-819.0,0.00041095,30]
[325414848,1714855853556,-500.0,0.00041095,30]
[325414849,1714855853566,-500.0,0.00041095,30]
[325414850,1714855853576,-562.4,0.00041095,30]
[325414851,1714855853585,-1077.81,0.00041095,30]
[325414852,1714855853595,-40526.23,0.00041095,30]
[325414853,1714855853604,-1272.14,0.00041095,30]
[325414854,1714855853614,-500.0,0.00041095,30]
[325414855,1714855853623,-500.0,0.00041095,30]
[325414856,1714855853633,-500.0,0.00041095,30]
[325414857,1714855853643,-500.0,0.00041095,30]
[325414858,1714855853652,-1328.36,0.00041095,30]
[325414859,1714855853662,-1245.79,0.00041095,30]
[325414860,1714855853671,-1094.66,0.00041095,30]
[325414861,1714855853682,-1795.97,0.00041095,30]
[325414862,1714855853691,-508.19,0.00041095,30]
[325414863,1714855853700,-1334.46,0.00041095,30]
[325414864,1714855853710,-12930.05,0.00041095,30]
[325414865,1714855853719,-500.0,0.00041095,30]
[325414866,1714855853729,-500.0,0.00041095,30]
[325414867,1714855853739,-2463.33,0.00041095,30]
[325414868,1714855853748,-1100.31,0.00041095,30]
[325414869,1714855853757,-1500.0,0.00041095,30]
[325414870,1714855853767,-500.0,0.00041095,30]
[325414871,1714855853777,-911.4,0.00041095,30]
[325414872,1714855853790,-500.0,0.00041095,30]
[325414873,1714855853800,-500.0,0.00041095,30]
[325414874,1714855853810,-500.0,0.00041095,30]
[325414875,1714855853820,-500.0,0.00041095,30]
[325414876,1714855853830,-500.0,0.00041095,30]
[325414877,1714855853839,-500.0,0.00041095,30]
[325414878,1714855853849,-3148.15,0.00041095,30]
[325414879,1714855853859,-1194.13,0.00041095,30]
[325414880,1714855853869,-500.0,0.00041095,30]
[325414881,1714855853879,-1438.2,0.00041095,30]
[325414882,1714855853888,-1228.82,0.00041095,30]
[325414883,1714855853899,-500.0,0.00041095,30]
[325414884,1714855853908,-1081.38,0.00041095,30]
[325414885,1714855853918,-500.0,0.00041095,30]
[325414886,1714855853927,-3117.19,0.00041095,30]
[325414887,1714855853937,-500.0,0.00041095,30]
[325414888,1714855853946,-500.0,0.00041095,30]
[325414889,1714855853956,-500.0,0.00041095,30]
[325414890,1714855853965,-692.31,0.00041095,30]
[325414891,1714855853975,-594.18,0.00041095,30]
[325414892,1714855853984,-1222.92,0.00041095,30]
[325414893,1714855853994,-6770.64,0.00041095,30]
[325414894,1714855854004,-500.0,0.00041095,30]
[325414895,1714855854013,-776.82,0.00041095,30]
[325414896,1714855854023,-500.0,0.00041095,30]
[325414897,1714855854033,-1161.3,0.00041095,30]
[325414898,1714855854043,-500.0,0.00041095,30]
[325414899,1714855854052,-515.17,0.00041095,30]
[325414900,1714855854062,-500.0,0.00041095,30]
[325414901,1714855854071,-487.83023256,0.00041095,30]
[325414902,1714855854081,-160.54951326,0.00041095,30]
[325414903,1714855854090,-912.84,0.00041095,30]
[325414904,1714855854100,-4093.13,0.00041095,30]
[325414905,1714855854110,-1347.17,0.00041095,30]
[325414906,1714855854119,-500.0,0.00041095,30]
[325414907,1714855854129,-500.0,0.00041095,30]
[325414908,1714855854138,-500.0,0.00041095,30]
[325414909,1714855854148,-1619.63,0.00041095,30]
[325414910,1714855854157,-665.05,0.00041095,30]
[325414911,1714855854167,-6676.72,0.00041095,30]
[325414912,1714855854176,-919.81,0.00041095,30]
[325414913,1714855854187,-2463.03,0.00041095,30]
[325414914,1714855854196,-500.0,0.00041095,30]
[325414915,1714855854208,-1035.11,0.00041095,30]
[325414916,1714855854219,-500.0,0.00041095,30]
[325414917,1714855854230,-500.0,0.00041095,30]
[325414918,1714855854240,-500.0,0.00041095,30]
[325414919,1714855854250,-500.0,0.00041095,30]
[325414920,1714855854261,-500.0,0.00041095,30]
[325414921,1714855854271,-500.0,0.00041095,30]
[325414922,1714855854280,-500.0,0.00041095,30]
[325414923,1714855854290,-500.0,0.00041095,30]
[325414924,1714855854299,-620.97,0.00041095,30]
[325414925,1714855854309,-861.68,0.00041095,30]
[325414926,1714855854318,-500.0,0.00041095,30]
[325414927,1714855854328,-540.14,0.00041095,30]
[325414928,1714855854337,-1138.43,0.00041095,30]
[325414929,1714855854347,-500.0,0.00041095,30]
[325414930,1714855854357,-6974.52,0.00041095,30]
[325414931,1714855854367,-500.0,0.00041095,30]
[325414932,1714855854377,-3852.31,0.00041095,30]
[325414933,1714855854388,-1301.8,0.00041095,30]
[325414934,1714855854398,-500.0,0.00041095,30]
[325414935,1714855854408,-1502.78,0.00041095,30]
[325414936,1714855854418,-500.0,0.00041095,30]
[325414937,1714855854428,-25614.85,0.00041095,30]
[325414938,1714855854438,-500.0,0.00041095,30]
[325414939,1714855854447,-2676.57,0.00041095,30]
[325414940,1714855854457,-1465.78,0.00041095,30]
[325414941,1714855854467,-500.0,0.00041095,30]
[325414942,1714855854476,-1337.06,0.00041095,30]
[325414943,1714855854486,-500.0,0.00041095,30]
[325414944,1714855854496,-847.01,0.00041095,30]
[325414945,1714855854505,-500.0,0.00041095,30]
[325414946,1714855854514,-579.33332157,0.00041095,30]
[325414947,1714855854523,-1476.7,0.00041095,30]
[325414948,1714855854534,-500.0,0.00041095,30]
[325414949,1714855854544,-1243.18,0.00041095,30]
[325414950,1714855854554,-500.0,0.00041095,30]
[325414951,1714855854563,-500.0,0.00041095,30]
[325414952,1714855854572,-500.96169625,0.00041095,30]
[325414953,1714855854582,-6413.99,0.00041095,30]
[325414954,1714855854591,-500.0,0.00041095,30]
[325414955,1714855854601,-768.34,0.00041095,30]
[325414956,1714855854610,-6339.23,0.00041095,30]
[325414957,1714855854620,-1393.65,0.00041095,30]
[325414958,1714855854629,-4345.72,0.00041095,30]
[325414959,1714855854638,-1100.72,0.00041095,30]
[325414960,1714855854648,-500.0,0.00041095,30]